Workbook

Sheet Kassaflödesrapport
B1: Kassaflöde Rapport
B3: Räkenskapsåret inleds: | D3: (Inför) start | E3: =UPPER(TEXT(Räkenskapsårets_startdatum,"MMM")) -> JAN | F3: =UPPER(TEXT(EOMONTH(Räkenskapsårets_startdatum,1),"MMM")) -> FEB | G3: =UPPER(TEXT(EOMONTH(Räkenskapsårets_startdatum,2),"MMM")) -> MAR | H3: =UPPER(TEXT(EOMONTH(Räkenskapsårets_startdatum,3),"MMM")) -> APR | I3: =UPPER(TEXT(EOMONTH(Räkenskapsårets_startdatum,4),"MMM")) -> MAJ | J3: =UPPER(TEXT(EOMONTH(Räkenskapsårets_startdatum,5),"MMM")) -> JUN | K3: =UPPER(TEXT(EOMONTH(Räkenskapsårets_startdatum,6),"MMM")) -> JUL | L3: =UPPER(TEXT(EOMONTH(Räkenskapsårets_startdatum,7),"MMM")) -> AUG | M3: =UPPER(TEXT(EOMONTH(Räkenskapsårets_startdatum,8),"MMM")) -> SEP | N3: =UPPER(TEXT(EOMONTH(Räkenskapsårets_startdatum,9),"MMM")) -> OKT | O3: =UPPER(TEXT(EOMONTH(Räkenskapsårets_startdatum,10),"MMM")) -> NOV | P3: =UPPER(TEXT(EOMONTH(Räkenskapsårets_startdatum,11),"MMM")) -> DEC | R3: Summa
B4: 2012-01-05 | D4: UPPSK | E4: =Räkenskapsårets_startdatum -> 2012-01-05 | F4: =EOMONTH(E4,0)+DAY(Räkenskapsårets_startdatum) -> 2012-02-05 | G4: =EOMONTH(F4,0)+DAY(Räkenskapsårets_startdatum) -> 2012-03-05 | H4: =EOMONTH(G4,0)+DAY(Räkenskapsårets_startdatum) -> 2012-04-05 | I4: =EOMONTH(H4,0)+DAY(Räkenskapsårets_startdatum) -> 2012-05-05 | J4: =EOMONTH(I4,0)+DAY(Räkenskapsårets_startdatum) -> 2012-06-05 | K4: =EOMONTH(J4,0)+DAY(Räkenskapsårets_startdatum) -> 2012-07-05 | L4: =EOMONTH(K4,0)+DAY(Räkenskapsårets_startdatum) -> 2012-08-05 | M4: =EOMONTH(L4,0)+DAY(Räkenskapsårets_startdatum) -> 2012-09-05 | N4: =EOMONTH(M4,0)+DAY(Räkenskapsårets_startdatum) -> 2012-10-05 | O4: =EOMONTH(N4,0)+DAY(Räkenskapsårets_startdatum) -> 2012-11-05 | P4: =EOMONTH(O4,0)+DAY(Räkenskapsårets_startdatum) -> 2012-12-05 | R4: UPPSK, post
B6: Kontanta medel (i början av månaden) | D6: 100 | E6: =D51 -> 100 | F6: =E51 -> -125 | G6: 45 | H6: -1 | I6: 224 | J6: 269 | K6: 269 | L6: 269 | M6: 269 | N6: 269 | O6: 269 | P6: 269 | R6: =P6 -> 269
B8: Inbetalningar
B10: Kontantförsäljning | E10: 125 | F10: 120 | G10: 130 | H10: 100 | R10: =SUM(Inbetalningar[[#This Row],[Period 0]:[Period 12]]) -> 475
B11: Överföringar från krediterade konton | H11: 75 | I11: 45 | R11: =SUM(Inbetalningar[[#This Row],[Period 0]:[Period 12]]) -> 120
B12: Lån/övriga kassainflöden | E12: 50 | F12: 50 | G12: 50 | H12: 50 | R12: =SUM(Inbetalningar[[#This Row],[Period 0]:[Period 12]]) -> 200
B13: Summa | D13: =SUBTOTAL(109,Inbetalningar[Period 0]) -> 0 | E13: =SUBTOTAL(109,Inbetalningar[Period 1]) -> 175 | F13: =SUBTOTAL(109,Inbetalningar[Period 2]) -> 170 | G13: =SUBTOTAL(109,Inbetalningar[Period 3]) -> 180 | H13: =SUBTOTAL(109,Inbetalningar[Period 4]) -> 225 | I13: =SUBTOTAL(109,Inbetalningar[Period 5]) -> 45 | J13: =SUBTOTAL(109,Inbetalningar[Period 6]) -> 0 | K13: =SUBTOTAL(109,Inbetalningar[Period 7]) -> 0 | L13: =SUBTOTAL(109,Inbetalningar[Period 8]) -> 0 | M13: =SUBTOTAL(109,Inbetalningar[Period 9]) -> 0 | N13: =SUBTOTAL(109,Inbetalningar[Period 10]) -> 0 | O13: =SUBTOTAL(109,Inbetalningar[Period 11]) -> 0 | P13: =SUBTOTAL(109,Inbetalningar[Period 12]) -> 0 | R13: =SUBTOTAL(109,Inbetalningar[Summa]) -> 795
B14: Summa kontanta medel (före kassaräkning) | D14: =D6+SUM(Inbetalningar[Period 0]) -> 100 | E14: =E6+SUM(Inbetalningar[Period 1]) -> 275 | F14: =F6+SUM(Inbetalningar[Period 2]) -> 45 | G14: =G6+SUM(Inbetalningar[Period 3]) -> 225 | H14: =H6+SUM(Inbetalningar[Period 4]) -> 224 | I14: =I6+SUM(Inbetalningar[Period 5]) -> 269 | J14: =J6+SUM(Inbetalningar[Period 6]) -> 269 | K14: =K6+SUM(Inbetalningar[Period 7]) -> 269 | L14: =L6+SUM(Inbetalningar[Period 8]) -> 269 | M14: =M6+SUM(Inbetalningar[Period 9]) -> 269 | N14: =N6+SUM(Inbetalningar[Period 10]) -> 269 | O14: =O6+SUM(Inbetalningar[Period 11]) -> 269 | P14: =P6+SUM(Inbetalningar[Period 12]) -> 269 | R14: =R6+SUM(Inbetalningar[Summa]) -> 1064
B16: Utbetalningar
B18: Inköp (varor) | E18: 400 | G18: 226 | R18: =SUM(Utbetalningar1[[#This Row],[Period 0]:[Period 12]]) -> 626
B19: Inköp (anges) | R19: =SUM(Utbetalningar1[[#This Row],[Period 0]:[Period 12]]) -> 0
B20: Inköp (anges) | R20: =SUM(Utbetalningar1[[#This Row],[Period 0]:[Period 12]]) -> 0
B21: Bruttolöner (exakta uttag) | R21: =SUM(Utbetalningar1[[#This Row],[Period 0]:[Period 12]]) -> 0
B22: Lönekostnader (arbetsgivaravgifter osv.) | R22: =SUM(Utbetalningar1[[#This Row],[Period 0]:[Period 12]]) -> 0
B23: Externa tjänster | R23: =SUM(Utbetalningar1[[#This Row],[Period 0]:[Period 12]]) -> 0
B24: Förbrukningsmaterial (kontor och drift) | R24: =SUM(Utbetalningar1[[#This Row],[Period 0]:[Period 12]]) -> 0
B25: Reparationer och underhåll | R25: =SUM(Utbetalningar1[[#This Row],[Period 0]:[Period 12]]) -> 0
B26: Annonsering | R26: =SUM(Utbetalningar1[[#This Row],[Period 0]:[Period 12]]) -> 0
B27: Fordon, frakt och resor | R27: =SUM(Utbetalningar1[[#This Row],[Period 0]:[Period 12]]) -> 0
B28: Redovisning och juridiska tjänster | R28: =SUM(Utbetalningar1[[#This Row],[Period 0]:[Period 12]]) -> 0
B29: Hyra | R29: =SUM(Utbetalningar1[[#This Row],[Period 0]:[Period 12]]) -> 0
B30: Telefon | R30: =SUM(Utbetalningar1[[#This Row],[Period 0]:[Period 12]]) -> 0
B31: El, vatten och avfallshantering | R31: =SUM(Utbetalningar1[[#This Row],[Period 0]:[Period 12]]) -> 0
B32: Försäkring | R32: =SUM(Utbetalningar1[[#This Row],[Period 0]:[Period 12]]) -> 0
B33: Skatter (fastighetsskatt osv.) | R33: =SUM(Utbetalningar1[[#This Row],[Period 0]:[Period 12]]) -> 0
B34: Ränta | R34: =SUM(Utbetalningar1[[#This Row],[Period 0]:[Period 12]]) -> 0
B35: Övriga utgifter (anges) | R35: =SUM(Utbetalningar1[[#This Row],[Period 0]:[Period 12]]) -> 0
B36: Övrigt (anges) | R36: =SUM(Utbetalningar1[[#This Row],[Period 0]:[Period 12]]) -> 0
B37: Övrigt (anges) | R37: =SUM(Utbetalningar1[[#This Row],[Period 0]:[Period 12]]) -> 0
B38: Diverse | R38: =SUM(Utbetalningar1[[#This Row],[Period 0]:[Period 12]]) -> 0
B39: Summa | D39: =SUBTOTAL(109,Utbetalningar1[Period 0]) -> 0 | E39: =SUBTOTAL(109,Utbetalningar1[Period 1]) -> 400 | F39: =SUBTOTAL(109,Utbetalningar1[Period 2]) -> 0 | G39: =SUBTOTAL(109,Utbetalningar1[Period 3]) -> 226 | H39: =SUBTOTAL(109,Utbetalningar1[Period 4]) -> 0 | I39: =SUBTOTAL(109,Utbetalningar1[Period 5]) -> 0 | J39: =SUBTOTAL(109,Utbetalningar1[Period 6]) -> 0 | K39: =SUBTOTAL(109,Utbetalningar1[Period 7]) -> 0 | L39: =SUBTOTAL(109,Utbetalningar1[Period 8]) -> 0 | M39: =SUBTOTAL(109,Utbetalningar1[Period 9]) -> 0 | N39: =SUBTOTAL(109,Utbetalningar1[Period 10]) -> 0 | O39: =SUBTOTAL(109,Utbetalningar1[Period 11]) -> 0 | P39: =SUBTOTAL(109,Utbetalningar1[Period 12]) -> 0 | R39: =SUBTOTAL(109,Utbetalningar1[Summa]) -> 626
B41: Utbetalningar (inte i resultaträkning)
B43: Kapitalkostnad | R43: =SUM(Utbetalningar2[[#This Row],[Period 0]:[Period 12]]) -> 0
B44: Investeringar (anges) | R44: =SUM(Utbetalningar2[[#This Row],[Period 0]:[Period 12]]) -> 0
B45: Övriga startkostnader | R45: =SUM(Utbetalningar2[[#This Row],[Period 0]:[Period 12]]) -> 0
B46: Reserv och/eller deposition | R46: =SUM(Utbetalningar2[[#This Row],[Period 0]:[Period 12]]) -> 0
B47: Eget uttag | R47: =SUM(Utbetalningar2[[#This Row],[Period 0]:[Period 12]]) -> 0
B48: Summa | D48: =SUBTOTAL(109,Utbetalningar2[Period 0]) -> 0 | E48: =SUBTOTAL(109,Utbetalningar2[Period 1]) -> 0 | F48: =SUBTOTAL(109,Utbetalningar2[Period 2]) -> 0 | G48: =SUBTOTAL(109,Utbetalningar2[Period 3]) -> 0 | H48: =SUBTOTAL(109,Utbetalningar2[Period 4]) -> 0 | I48: =SUBTOTAL(109,Utbetalningar2[Period 5]) -> 0 | J48: =SUBTOTAL(109,Utbetalningar2[Period 6]) -> 0 | K48: =SUBTOTAL(109,Utbetalningar2[Period 7]) -> 0 | L48: =SUBTOTAL(109,Utbetalningar2[Period 8]) -> 0 | M48: =SUBTOTAL(109,Utbetalningar2[Period 9]) -> 0 | N48: =SUBTOTAL(109,Utbetalningar2[Period 10]) -> 0 | O48: =SUBTOTAL(109,Utbetalningar2[Period 11]) -> 0 | P48: =SUBTOTAL(109,Utbetalningar2[Period 12]) -> 0 | R48: =SUBTOTAL(109,Utbetalningar2[Summa]) -> 0
B49: Summa utbetalningar | D49: =SUM(Utbetalningar1[Period 0],Utbetalningar2[Period 0]) -> 0 | E49: =SUM(Utbetalningar1[Period 1],Utbetalningar2[Period 1]) -> 400 | F49: =SUM(Utbetalningar1[Period 2],Utbetalningar2[Period 2]) -> 0 | G49: =SUM(Utbetalningar1[Period 3],Utbetalningar2[Period 3]) -> 226 | H49: =SUM(Utbetalningar1[Period 4],Utbetalningar2[Period 4]) -> 0 | I49: =SUM(Utbetalningar1[Period 5],Utbetalningar2[Period 5]) -> 0 | J49: =SUM(Utbetalningar1[Period 6],Utbetalningar2[Period 6]) -> 0 | K49: =SUM(Utbetalningar1[Period 7],Utbetalningar2[Period 7]) -> 0 | L49: =SUM(Utbetalningar1[Period 8],Utbetalningar2[Period 8]) -> 0 | M49: =SUM(Utbetalningar1[Period 9],Utbetalningar2[Period 9]) -> 0 | N49: =SUM(Utbetalningar1[Period 10],Utbetalningar2[Period 10]) -> 0 | O49: =SUM(Utbetalningar1[Period 11],Utbetalningar2[Period 11]) -> 0 | P49: =SUM(Utbetalningar1[Period 12],Utbetalningar2[Period 12]) -> 0 | R49: =SUM(Utbetalningar1[Summa],Utbetalningar2[Summa]) -> 626
B51: Kassa (månadsslutet) | D51: =D14-D49 -> 100 | E51: -125 | F51: 45 | G51: -1 | H51: 224 | I51: 269 | J51: 269 | K51: 269 | L51: 269 | M51: 269 | N51: 269 | O51: 269 | P51: 269 | R51: =R14-R49 -> 438
